lending/lending_fUSD_20260110
["ID","MTS","AMOUNT","RATE_DAILY","PERIOD"]
[401212320,1768048243865,-252.68743637,0.00016455,2]
[401212321,1768048243874,-260.75602621,0.00016455,2]
[401212322,1768048243884,-213.87423394,0.00016455,2]
[401212323,1768048243893,-177.21892515,0.00016455,2]
[401212324,1768048243907,-500.0,0.00016465,2]
[401212325,1768048243917,-8882.6885148,0.00016465,2]
[401212326,1768048243927,-150.0,0.0001647,2]
[401212327,1768048243936,-188.04348929,0.00016473,2]
[401212328,1768048243947,-252.68743637,0.00016473,2]
[401212329,1768048243957,-260.75602621,0.00016473,2]
[401212330,1768048243967,-213.87423394,0.00016473,2]
[401212331,1768048243981,-177.21892515,0.00016473,2]
[401212332,1768048243990,-188.04348929,0.00016491,2]
[401212333,1768048243999,-252.68743637,0.00016491,2]
[401212334,1768048244009,-260.75602621,0.00016491,2]
[401212335,1768048244019,-213.87423394,0.00016491,2]
[401212336,1768048244028,-177.21892515,0.00016491,2]
[401212337,1768048244037,-150.0,0.00016493,2]
[401212338,1768048244047,-150.0,0.000165,2]
[401212339,1768048244057,-999.0,0.00016508,3]
[401212340,1768048244067,-188.04348929,0.00016509,2]
[401212341,1768048244076,-252.68743637,0.00016509,2]
[401212342,1768048244086,-260.75602621,0.00016509,2]
[401212343,1768048244096,-213.87423394,0.00016509,2]
[401212344,1768048244106,-177.21892515,0.00016509,2]
[401212345,1768048244115,-500.0,0.0001652,2]
[401212346,1768048244125,-805.55508344,0.0001652,2]
[401212347,1768048244135,-188.04348929,0.00016527,2]
[401212348,1768048244145,-252.68743637,0.00016527,2]
[401212349,1768048244155,-260.75602621,0.00016527,2]
[401212350,1768048244165,-213.87423394,0.00016527,2]
[401212351,1768048244174,-177.21892515,0.00016527,2]
[401212352,1768048244183,-150.0,0.0001653,2]
[401212353,1768048244192,-150.0,0.00016535,2]
[401212354,1768048244202,-166.45574119,0.00016541,2]
[401212355,1768048244211,-1279.45,0.00016542,2]
[401212356,1768048244220,-426.0,0.00016545,2]
[401212357,1768048244229,-188.04348929,0.00016545,2]
[401212358,1768048244239,-252.68743637,0.00016545,2]
[401212359,1768048244248,-260.75602621,0.00016545,2]
[401212360,1768048244258,-213.87423394,0.00016545,2]
[401212361,1768048244267,-177.21892515,0.00016545,2]
[401212362,1768048244277,-150.0,0.0001656,2]
[401212363,1768048244286,-150.0,0.0001656,2]
[401212364,1768048244295,-150.0,0.0001656,2]
[401212365,1768048244304,-188.04348929,0.00016564,2]
[401212366,1768048244314,-252.68743637,0.00016564,2]
[401212367,1768048244324,-260.75602621,0.00016564,2]
[401212368,1768048244334,-213.87423394,0.00016564,2]
[401212369,1768048244344,-177.21892515,0.00016564,2]
[401212370,1768048244354,-500.0,0.00016575,2]
[401212371,1768048244363,-150.0,0.00016577,2]
[401212372,1768048244374,-500.0,0.00016578,2]
[401212373,1768048244383,-3491.36319809,0.00016578,2]
[401212374,1768048244392,-11312.89016599,0.00016578,2]
[401212375,1768048244402,-188.04348929,0.00016582,2]
[401212376,1768048244411,-252.68743637,0.00016582,2]
[401212377,1768048244420,-260.75602621,0.00016582,2]
[401212378,1768048244430,-213.87423394,0.00016582,2]
[401212379,1768048244439,-177.21892515,0.00016582,2]
[401212380,1768048244449,-150.0,0.0001659,2]
[401212381,1768048244459,-188.04348929,0.000166,2]
[401212382,1768048244468,-252.68743637,0.000166,2]
[401212383,1768048244478,-260.75602621,0.000166,2]
[401212384,1768048244488,-213.87423394,0.000166,2]
[401212385,1768048244498,-177.21892515,0.000166,2]
[401212386,1768048244507,-188.04348929,0.00016618,2]
[401212387,1768048244518,-252.68743637,0.00016618,2]
[401212388,1768048244528,-260.75602621,0.00016618,2]
[401212389,1768048244537,-213.87423394,0.00016618,2]
[401212390,1768048244547,-177.21892515,0.00016618,2]
[401212391,1768048244557,-150.0,0.00016619,2]
[401212392,1768048244567,-166.66,0.00016619,2]
[401212393,1768048244577,-150.0,0.0001662,2]
[401212394,1768048244587,-298.63270858,0.00016626,2]
[401212395,1768048244597,-500.0,0.00016629,2]
[401212396,1768048244607,-188.04348929,0.00016636,2]
[401212397,1768048244617,-252.68743637,0.00016636,2]
[401212398,1768048244627,-260.75602621,0.00016636,2]
[401212399,1768048244637,-213.87423394,0.00016636,2]
[401212400,1768048244647,-177.21892515,0.00016636,2]
[401212401,1768048244657,-150.0,0.0001665,2]
[401212402,1768048244667,-150.0,0.0001665,2]
[401212403,1768048244677,-150.0,0.0001665,2]
[401212404,1768048244687,-188.04348929,0.00016655,2]
[401212405,1768048244697,-252.68743637,0.00016655,2]
[401212406,1768048244707,-260.75602621,0.00016655,2]
[401212407,1768048244715,-213.87423394,0.00016655,2]
[401212408,1768048244724,-177.21892515,0.00016655,2]
[401212409,1768048244734,-150.0,0.0001666,2]
[401212410,1768048244743,-188.04348929,0.00016673,2]
[401212411,1768048244753,-252.68743637,0.00016673,2]
[401212412,1768048244767,-260.75602621,0.00016673,2]
[401212413,1768048244778,-213.87423394,0.00016673,2]
[401212414,1768048244788,-177.21892515,0.00016673,2]
[401212415,1768048244797,-150.0,0.0001668,2]
[401212416,1768048244807,-150.0,0.0001668,2]
[401212417,1768048244818,-500.0,0.00016683,2]
[401212418,1768048244828,-500.0,0.00016684,2]
[401212419,1768048244837,-1680.0,0.00016686,2]
[401212420,1768048244847,-300.0,0.0001669,2]
[401212421,1768048244858,-289.92966969,0.0001669,2]
[401212422,1768048244867,-195.0,0.0001669,2]
[401212423,1768048244877,-600.0,0.0001669,2]
[401212424,1768048244887,-250.0,0.0001669,2]
[401212425,1768048244897,-188.04348929,0.00016691,2]
[401212426,1768048244908,-252.68743637,0.00016691,2]
[401212427,1768048244917,-260.75602621,0.00016691,2]
[401212428,1768048244927,-213.87423394,0.00016691,2]
[401212429,1768048244937,-177.21892515,0.00016691,2]
[401212430,1768048244947,-150.0,0.00016702,2]
[401212431,1768048244957,-249.27802935,0.00016707,2]
[401212432,1768048244967,-188.04348929,0.00016709,2]
[401212433,1768048244976,-252.68743637,0.00016709,2]
[401212434,1768048244985,-260.75602621,0.00016709,2]
[401212435,1768048244995,-213.87423394,0.00016709,2]
[401212436,1768048245004,-177.21892515,0.00016709,2]
[401212437,1768048245014,-150.0,0.0001671,2]
[401212438,1768048245024,-160.0,0.00016712,2]
[401212439,1768048245034,-188.04348929,0.00016727,2]
[401212440,1768048245044,-252.68743637,0.00016727,2]
[401212441,1768048245053,-260.75602621,0.00016727,2]
[401212442,1768048245063,-213.87423394,0.00016727,2]
[401212443,1768048245072,-177.21892515,0.00016727,2]
[401212444,1768048245083,-468.28299091,0.00016739,2]
[401212445,1768048245092,-150.0,0.0001674,2]
[401212446,1768048245103,-429.31,0.00016744,2]
[401212447,1768048245112,-150.0,0.00016744,2]
[401212448,1768048245123,-188.04348929,0.00016745,2]
[401212449,1768048245133,-252.68743637,0.00016745,2]
[401212450,1768048245143,-260.75602621,0.00016745,2]
[401212451,1768048245153,-213.87423394,0.00016745,2]
[401212452,1768048245163,-177.21892515,0.00016745,2]
[401212453,1768048245173,-1740.0035,0.00016755,2]
[401212454,1768048245182,-10000.0,0.00016755,2]
[401212455,1768048245193,-188.04348929,0.00016764,2]
[401212456,1768048245203,-252.68743637,0.00016764,2]
[401212457,1768048245213,-260.75602621,0.00016764,2]
[401212458,1768048245224,-213.87423394,0.00016764,2]
[401212459,1768048245234,-177.21892515,0.00016764,2]
[401212460,1768048245244,-150.0,0.0001677,2]
[401212461,1768048245254,-188.04348929,0.00016782,2]
[401212462,1768048245264,-252.68743637,0.00016782,2]
[401212463,1768048245274,-260.75602621,0.00016782,2]
[401212464,1768048245283,-213.87423394,0.00016782,2]
[401212465,1768048245293,-177.21892515,0.00016782,2]
[401212466,1768048245302,-150.0,0.00016786,2]
[401212467,1768048245311,-188.04348929,0.000168,2]
[401212468,1768048245320,-252.68743637,0.000168,2]
[401212469,1768048245330,-260.75602621,0.000168,2]
[401212470,1768048245340,-213.87423394,0.000168,2]
[401212471,1768048245350,-177.21892515,0.000168,2]
[401212472,1768048245359,-150.0,0.000168,2]
[401212473,1768048245369,-150.0,0.000168,2]
[401212474,1768048245379,-1279.45,0.00016816,2]
[401212475,1768048245388,-188.04348929,0.00016818,2]
[401212476,1768048245399,-252.68743637,0.00016818,2]
[401212477,1768048245409,-260.75602621,0.00016818,2]
[401212478,1768048245419,-213.87423394,0.00016818,2]
[401212479,1768048245430,-177.21892515,0.00016818,2]
[401212480,1768048245440,-420.0,0.00016827,2]
[401212481,1768048245450,-150.0,0.00016828,2]
[401212482,1768048245460,-1200.0,0.00016828,2]
[401212483,1768048245470,-150.0,0.0001683,2]
[401212484,1768048245480,-188.04348929,0.00016836,2]
[401212485,1768048245489,-252.68743637,0.00016836,2]
[401212486,1768048245499,-260.75602621,0.00016836,2]
[401212487,1768048245508,-213.87423394,0.00016836,2]
[401212488,1768048245519,-177.21892515,0.00016836,2]
[401212489,1768048245528,-3491.36319809,0.00016843,2]
[401212490,1768048245538,-11312.89016599,0.00016843,2]
[401212491,1768048245548,-188.04348929,0.00016855,2]
[401212492,1768048245558,-252.68743637,0.00016855,2]
[401212493,1768048245569,-260.75602621,0.00016855,2]
[401212494,1768048245579,-213.87423394,0.00016855,2]
[401212495,1768048245590,-177.21892515,0.00016855,2]
[401212496,1768048245600,-166.66,0.00016859,2]
[401212497,1768048245609,-150.0,0.0001686,2]
[401212498,1768048245619,-150.0,0.0001687,2]
[401212499,1768048245628,-188.04348929,0.00016873,2]
[401212500,1768048245638,-252.68743637,0.00016873,2]
[401212501,1768048245648,-260.75602621,0.00016873,2]
[401212502,1768048245659,-213.87423394,0.00016873,2]
[401212503,1768048245670,-177.21892515,0.00016873,2]
[401212504,1768048245679,-150.0,0.00016875,2]
[401212505,1768048245690,-150.0,0.0001689,2]
[401212506,1768048245699,-188.04348929,0.00016891,2]
[401212507,1768048245709,-252.68743637,0.00016891,2]
[401212508,1768048245719,-260.75602621,0.00016891,2]
[401212509,1768048245729,-213.87423394,0.00016891,2]
[401212510,1768048245739,-177.21892515,0.00016891,2]
[401212511,1768048245750,-151.0,0.00016903,2]
[401212512,1768048245761,-514.84070869,0.00016903,2]
[401212513,1768048245771,-197.9969081,0.00016903,2]
[401212514,1768048245781,-187.78006525,0.00016903,2]
[401212515,1768048245791,-151.0,0.00016903,2]
[401212516,1768048245800,-188.04348929,0.00016909,2]
[401212517,1768048245811,-252.68743637,0.00016909,2]
[401212518,1768048245821,-260.75602621,0.00016909,2]
[401212519,1768048245831,-213.87423394,0.00016909,2]
[401212520,1768048245842,-177.21892515,0.00016909,2]
[401212521,1768048245852,-150.0,0.00016912,2]
[401212522,1768048245862,-150.0,0.0001692,2]
[401212523,1768048245872,-150.0,0.0001692,2]
[401212524,1768048245883,-150.0,0.0001692,2]
[401212525,1768048245893,-193.0,0.00016921,2]
[401212526,1768048245907,-250.0,0.00016921,2]
[401212527,1768048245917,-188.04348929,0.00016927,2]
[401212528,1768048245927,-252.68743637,0.00016927,2]
[401212529,1768048245937,-260.75602621,0.00016927,2]
[401212530,1768048245949,-213.87423394,0.00016927,2]
[401212531,1768048246151,-177.21892515,0.00016927,2]
[401212532,1768048246191,-1000.0,0.00016935,2]
[401212533,1768048246202,-188.04348929,0.00016945,2]
[401212534,1768048246213,-252.68743637,0.00016945,2]
[401212535,1768048246223,-260.75602621,0.00016945,2]
[401212536,1768048246232,-213.87423394,0.00016945,2]
[401212537,1768048246244,-177.21892515,0.00016945,2]
[401212538,1768048246255,-150.0,0.0001695,2]
[401212539,1768048246265,-150.0,0.00016953,2]
[401212540,1768048246275,-166.66,0.00016955,2]
[401212541,1768048246285,-500.0,0.00016957,2]
[401212542,1768048246296,-188.04348929,0.00016964,2]
[401212543,1768048246306,-252.68743637,0.00016964,2]
[401212544,1768048246316,-260.75602621,0.00016964,2]
[401212545,1768048246326,-213.87423394,0.00016964,2]
[401212546,1768048246336,-177.21892515,0.00016964,2]
[401212547,1768048246346,-150.0,0.0001698,2]
[401212548,1768048246356,-194.72792766,0.0001698,2]
[401212549,1768048246366,-188.04348929,0.00016982,2]
[401212550,1768048246376,-252.68743637,0.00016982,2]
[401212551,1768048246387,-260.75602621,0.00016982,2]
[401212552,1768048246396,-213.87423394,0.00016982,2]
[401212553,1768048246406,-177.21892515,0.00016982,2]
[401212554,1768048246416,-600.0,0.00016986,2]
[401212555,1768048246427,-150.0,0.00016995,2]
[401212556,1768048246437,-188.04348929,0.00017,2]
[401212557,1768048246447,-252.68743637,0.00017,2]
[401212558,1768048246457,-260.75602621,0.00017,2]
[401212559,1768048246467,-213.87423394,0.00017,2]
[401212560,1768048246477,-177.21892515,0.00017,2]
[401212561,1768048246486,-210.20353926,0.00017,2]
[401212562,1768048246496,-150.0,0.0001701,2]
[401212563,1768048246506,-188.04348929,0.00017018,2]
[401212564,1768048246516,-252.68743637,0.00017018,2]
[401212565,1768048246526,-260.75602621,0.00017018,2]
[401212566,1768048246536,-213.87423394,0.00017018,2]
[401212567,1768048246546,-177.21892515,0.00017018,2]
[401212568,1768048246556,-188.04348929,0.00017036,2]
[401212569,1768048246566,-252.68743637,0.00017036,2]
[401212570,1768048246575,-260.75602621,0.00017036,2]
[401212571,1768048246584,-213.87423394,0.00017036,2]
[401212572,1768048246594,-177.21892515,0.00017036,2]
[401212573,1768048246603,-150.0,0.00017037,2]
[401212574,1768048246613,-150.0,0.0001704,2]
[401212575,1768048246623,-150.0,0.0001704,2]
[401212576,1768048246633,-162.0,0.0001704,2]
[401212577,1768048246643,-850.0,0.0001704,2]
[401212578,1768048246652,-298.63270858,0.0001705,2]
[401212579,1768048246662,-188.04348929,0.00017055,2]
[401212580,1768048246672,-252.68743637,0.00017055,2]
[401212581,1768048246682,-260.75602621,0.00017055,2]
[401212582,1768048246691,-213.87423394,0.00017055,2]
[401212583,1768048246701,-177.21892515,0.00017055,2]
[401212584,1768048246711,-150.0,0.0001707,2]
[401212585,1768048246721,-188.04348929,0.00017073,2]
[401212586,1768048246732,-252.68743637,0.00017073,2]
[401212587,1768048246742,-260.75602621,0.00017073,2]
[401212588,1768048246752,-213.87423394,0.00017073,2]
[401212589,1768048246762,-177.21892515,0.00017073,2]
[401212590,1768048246772,-150.0,0.00017079,2]
[401212591,1768048246782,-1279.45,0.0001709,2]
[401212592,1768048246792,-188.04348929,0.00017091,2]
[401212593,1768048246801,-252.68743637,0.00017091,2]
[401212594,1768048246811,-260.75602621,0.00017091,2]
[401212595,1768048246820,-213.87423394,0.00017091,2]
[401212596,1768048246830,-177.21892515,0.00017091,2]
[401212597,1768048246839,-500.0,0.00017096,2]
[401212598,1768048246849,-150.0,0.000171,2]
[401212599,1768048246859,-150.0,0.000171,2]
[401212600,1768048246869,-150.0,0.000171,2]
[401212601,1768048246879,-150.0,0.000171,2]
[401212602,1768048246889,-1069.8949683,0.000171,2]
[401212603,1768048246901,-3491.36319809,0.00017107,2]
[401212604,1768048246915,-11312.89016599,0.00017107,2]
[401212605,1768048246924,-188.04348929,0.00017109,2]
[401212606,1768048246934,-252.68743637,0.00017109,2]
[401212607,1768048246943,-260.75602621,0.00017109,2]
[401212608,1768048246952,-213.87423394,0.00017109,2]
[401212609,1768048246963,-177.21892515,0.00017109,2]
[401212610,1768048246972,-150.0,0.00017121,2]
[401212611,1768048246981,-500.0,0.00017123,2]
[401212612,1768048246991,-188.04348929,0.00017127,2]
[401212613,1768048247001,-252.68743637,0.00017127,2]
[401212614,1768048247011,-260.75602621,0.00017127,2]
[401212615,1768048247021,-213.87423394,0.00017127,2]
[401212616,1768048247030,-177.21892515,0.00017127,2]
[401212617,1768048247040,-150.0,0.0001713,2]
[401212618,1768048247050,-188.04348929,0.00017145,2]
[401212619,1768048247060,-252.68743637,0.00017145,2]
[401212620,1768048247070,-260.75602621,0.00017145,2]
[401212621,1768048247080,-213.87423394,0.00017145,2]
[401212622,1768048247095,-177.21892515,0.00017145,2]
[401212623,1768048247105,-561.2,0.00017147,2]
[401212624,1768048247115,-150.0,0.0001716,2]
[401212625,1768048247125,-150.0,0.0001716,2]
[401212626,1768048247135,-150.0,0.00017163,2]
[401212627,1768048247145,-188.04348929,0.00017164,2]
[401212628,1768048247155,-252.68743637,0.00017164,2]
[401212629,1768048247166,-260.75602621,0.00017164,2]
[401212630,1768048247175,-213.87423394,0.00017164,2]
[401212631,1768048247186,-177.21892515,0.00017164,2]
[401212632,1768048247196,-188.04348929,0.00017182,2]
[401212633,1768048247207,-252.68743637,0.00017182,2]
[401212634,1768048247219,-260.75602621,0.00017182,2]
[401212635,1768048247228,-213.87423394,0.00017182,2]
[401212636,1768048247238,-177.21892515,0.00017182,2]
[401212637,1768048247248,-150.0,0.0001719,2]
[401212638,1768048247258,-188.04348929,0.000172,2]
[401212639,1768048247268,-252.68743637,0.000172,2]
[401212640,1768048247278,-260.75602621,0.000172,2]
[401212641,1768048247287,-213.87423394,0.000172,2]
[401212642,1768048247298,-177.21892515,0.000172,2]
[401212643,1768048247307,-150.0,0.00017205,2]
[401212644,1768048247318,-188.04348929,0.00017218,2]
[401212645,1768048247327,-252.68743637,0.00017218,2]
[401212646,1768048247337,-260.75602621,0.00017218,2]
[401212647,1768048247347,-213.87423394,0.00017218,2]
[401212648,1768048247357,-177.21892515,0.00017218,2]
[401212649,1768048247368,-150.0,0.0001722,2]
[401212650,1768048247378,-561.2,0.00017225,2]
[401212651,1768048247387,-536.89418062,0.00017231,2]
[401212652,1768048247398,-188.04348929,0.00017236,2]
[401212653,1768048247408,-252.68743637,0.00017236,2]
[401212654,1768048247418,-260.75602621,0.00017236,2]
[401212655,1768048247428,-213.87423394,0.00017236,2]
[401212656,1768048247437,-177.21892515,0.00017236,2]
[401212657,1768048247448,-150.0,0.00017247,2]
[401212658,1768048247457,-159.16121496,0.00017248,2]
[401212659,1768048247468,-150.0,0.0001725,2]
[401212660,1768048247478,-188.04348929,0.00017255,2]
[401212661,1768048247487,-252.68743637,0.00017255,2]
[401212662,1768048247497,-260.75602621,0.00017255,2]
[401212663,1768048247507,-213.87423394,0.00017255,2]
[401212664,1768048247517,-177.21892515,0.00017255,2]
[401212665,1768048247528,-188.04348929,0.00017273,2]
[401212666,1768048247538,-252.68743637,0.00017273,2]
[401212667,1768048247548,-260.75602621,0.00017273,2]
[401212668,1768048247558,-213.87423394,0.00017273,2]
[401212669,1768048247569,-177.21892515,0.00017273,2]
[401212670,1768048247579,-150.0,0.0001728,2]
[401212671,1768048247589,-150.0,0.0001728,2]
[401212672,1768048247599,-150.0,0.0001728,2]
[401212673,1768048247609,-150.0,0.00017288,2]
[401212674,1768048247619,-166.66,0.00017291,2]
[401212675,1768048247629,-188.04348929,0.00017291,2]
[401212676,1768048247639,-252.68743637,0.00017291,2]
[401212677,1768048247648,-260.75602621,0.00017291,2]
[401212678,1768048247658,-213.87423394,0.00017291,2]
[401212679,1768048247668,-177.21892515,0.00017291,2]
[401212680,1768048247678,-561.2,0.00017302,2]
[401212681,1768048247688,-188.04348929,0.00017309,2]
[401212682,1768048247699,-252.68743637,0.00017309,2]
[401212683,1768048247708,-260.75602621,0.00017309,2]
[401212684,1768048247719,-213.87423394,0.00017309,2]
[401212685,1768048247729,-177.21892515,0.00017309,2]
[401212686,1768048247739,-150.0,0.0001731,2]
[401212687,1768048247749,-150.0,0.00017325,2]
[401212688,1768048247759,-188.04348929,0.00017327,2]
[401212689,1768048247769,-252.68743637,0.00017327,2]
[401212690,1768048247778,-260.75602621,0.00017327,2]
[401212691,1768048247788,-213.87423394,0.00017327,2]
[401212692,1768048247798,-177.21892515,0.00017327,2]
[401212693,1768048247808,-150.0,0.0001733,2]
[401212694,1768048247818,-150.0,0.0001734,2]
[401212695,1768048247829,-188.04348929,0.00017345,2]
[401212696,1768048247839,-252.68743637,0.00017345,2]
[401212697,1768048247849,-260.75602621,0.00017345,2]
[401212698,1768048247859,-213.87423394,0.00017345,2]
[401212699,1768048247870,-177.21892515,0.00017345,2]
[401212700,1768048247881,-238.82,0.00017359,2]
[401212701,1768048247891,-188.04348929,0.00017364,2]
[401212702,1768048247905,-252.68743637,0.00017364,2]
[401212703,1768048247917,-260.75602621,0.00017364,2]
[401212704,1768048247927,-213.87423394,0.00017364,2]
[401212705,1768048247936,-177.21892515,0.00017364,2]
[401212706,1768048247947,-1279.45,0.00017364,2]
[401212707,1768048247957,-150.0,0.0001737,2]
[401212708,1768048247967,-3491.36319809,0.00017371,2]
[401212709,1768048247978,-11312.89016599,0.00017371,2]
[401212710,1768048247988,-150.0,0.00017372,2]
[401212711,1768048247998,-602.0,0.00017373,2]
[401212712,1768048248008,-561.2,0.0001738,2]
[401212713,1768048248018,-188.04348929,0.00017382,2]
[401212714,1768048248028,-252.68743637,0.00017382,2]
[401212715,1768048248038,-260.75602621,0.00017382,2]
[401212716,1768048248048,-213.87423394,0.00017382,2]
[401212717,1768048248058,-177.21892515,0.00017382,2]
[401212718,1768048248067,-188.04348929,0.000174,2]
[401212719,1768048248078,-252.68743637,0.000174,2]
[401212720,1768048248087,-260.75602621,0.000174,2]
[401212721,1768048248097,-213.87423394,0.000174,2]
[401212722,1768048248107,-177.21892515,0.000174,2]
[401212723,1768048248116,-150.0,0.000174,2]
[401212724,1768048248127,-150.0,0.000174,2]
[401212725,1768048248137,-602.0,0.00017402,2]
[401212726,1768048248148,-150.0,0.00017414,2]
[401212727,1768048248158,-188.04348929,0.00017418,2]
[401212728,1768048248168,-252.68743637,0.00017418,2]
[401212729,1768048248177,-260.75602621,0.00017418,2]
[401212730,1768048248187,-213.87423394,0.00017418,2]
[401212731,1768048248197,-177.21892515,0.00017418,2]
[401212732,1768048248207,-150.0,0.0001743,2]
[401212733,1768048248217,-826.466,0.00017435,2]
[401212734,1768048248227,-188.04348929,0.00017436,2]
[401212735,1768048248237,-252.68743637,0.00017436,2]
[401212736,1768048248247,-260.75602621,0.00017436,2]
[401212737,1768048248258,-213.87423394,0.00017436,2]
[401212738,1768048248267,-177.21892515,0.00017436,2]
[401212739,1768048248277,-623.0,0.00017448,2]
[401212740,1768048248288,-151.0,0.00017451,2]
[401212741,1768048248298,-533.88981491,0.00017451,2]
[401212742,1768048248309,-194.72792766,0.00017451,2]
[401212743,1768048248319,-151.0,0.00017451,2]
[401212744,1768048248329,-188.04348929,0.00017455,2]
[401212745,1768048248340,-252.68743637,0.00017455,2]
[401212746,1768048248352,-260.75602621,0.00017455,2]
[401212747,1768048248362,-213.87423394,0.00017455,2]
[401212748,1768048248372,-177.21892515,0.00017455,2]
[401212749,1768048248382,-150.0,0.00017456,2]
[401212750,1768048248391,-561.2,0.00017457,2]
[401212751,1768048248401,-150.0,0.0001746,2]
[401212752,1768048248410,-602.0,0.00017464,2]
[401212753,1768048248420,-188.04348929,0.00017473,2]
[401212754,1768048248429,-252.68743637,0.00017473,2]
[401212755,1768048248439,-260.75602621,0.00017473,2]
[401212756,1768048248449,-213.87423394,0.00017473,2]
[401212757,1768048248459,-177.21892515,0.00017473,2]
[401212758,1768048248469,-298.63270858,0.00017475,2]
[401212759,1768048248478,-2220.97176964,0.0001749,2]
[401212760,1768048248488,-150.0,0.0001749,2]
[401212761,1768048248498,-188.04348929,0.00017491,2]
[401212762,1768048248508,-252.68743637,0.00017491,2]
[401212763,1768048248518,-260.75602621,0.00017491,2]
[401212764,1768048248528,-213.87423394,0.00017491,2]
[401212765,1768048248538,-177.21892515,0.00017491,2]
[401212766,1768048248548,-150.0,0.00017498,2]
[401212767,1768048248558,-2000.0,0.000175,2]
[401212768,1768048248568,-166.66,0.00017501,2]
[401212769,1768048248578,-188.04348929,0.00017509,2]
[401212770,1768048248672,-252.68743637,0.00017509,2]
[401212771,1768048248683,-260.75602621,0.00017509,2]
[401212772,1768048248692,-213.87423394,0.00017509,2]
[401212773,1768048248702,-177.21892515,0.00017509,2]
[401212774,1768048248712,-150.0,0.0001752,2]
[401212775,1768048248721,-150.0,0.0001752,2]
[401212776,1768048248731,-188.04348929,0.00017527,2]
[401212777,1768048248740,-252.68743637,0.00017527,2]
[401212778,1768048248750,-260.75602621,0.00017527,2]
[401212779,1768048248760,-213.87423394,0.00017527,2]
[401212780,1768048248770,-177.21892515,0.00017527,2]
[401212781,1768048248779,-600.0,0.00017534,2]
[401212782,1768048248789,-561.2,0.00017535,2]
[401212783,1768048248798,-602.0,0.00017538,2]
[401212784,1768048248808,-150.0,0.0001754,2]
[401212785,1768048248817,-602.0,0.00017544,2]
[401212786,1768048248827,-188.04348929,0.00017545,2]
[401212787,1768048248836,-252.68743637,0.00017545,2]
[401212788,1768048248846,-260.75602621,0.00017545,2]
[401212789,1768048248855,-213.87423394,0.00017545,2]
[401212790,1768048248864,-177.21892515,0.00017545,2]
[401212791,1768048248874,-150.0,0.0001755,2]
[401212792,1768048248884,-150.0,0.0001755,2]
[401212793,1768048248893,-150.0,0.0001755,2]
[401212794,1768048248907,-188.04348929,0.00017564,2]
[401212795,1768048248916,-252.68743637,0.00017564,2]
[401212796,1768048248925,-260.75602621,0.00017564,2]
[401212797,1768048248935,-213.87423394,0.00017564,2]
[401212798,1768048248944,-177.21892515,0.00017564,2]
[401212799,1768048248954,-150.0,0.0001758,2]
[401212800,1768048248963,-150.0,0.00017581,2]
[401212801,1768048248972,-188.04348929,0.00017582,2]
[401212802,1768048248982,-252.68743637,0.00017582,2]
[401212803,1768048248991,-260.75602621,0.00017582,2]
[401212804,1768048248999,-213.87423394,0.00017582,2]
[401212805,1768048249008,-177.21892515,0.00017582,2]
[401212806,1768048249018,-188.04348929,0.000176,2]
[401212807,1768048249027,-252.68743637,0.000176,2]
[401212808,1768048249039,-260.75602621,0.000176,2]
[401212809,1768048249048,-213.87423394,0.000176,2]
[401212810,1768048249056,-177.21892515,0.000176,2]
[401212811,1768048249066,-150.0,0.0001761,2]
[401212812,1768048249075,-561.2,0.00017612,2]
[401212813,1768048249084,-188.04348929,0.00017618,2]
[401212814,1768048249093,-252.68743637,0.00017618,2]
[401212815,1768048249102,-260.75602621,0.00017618,2]
[401212816,1768048249112,-213.87423394,0.00017618,2]
[401212817,1768048249122,-177.21892515,0.00017618,2]
[401212818,1768048249131,-150.0,0.00017623,2]
[401212819,1768048249142,-166.66,0.00017627,2]